bitfinex/quotes_ETHUSD_20230109
["timestamp","ask_amount","ask_price","bid_price","bid_amount"]
[1673286987258,1.84890209,1341.5,1341.4,26.45833064]
[1673286987681,0.21572232,1341.6,1341.4,57.92019974]
[1673286987882,1.82209913,1341.7,1341.5,10.31169838]
[1673286987883,0.14791938,1341.7,1341.5,10.31169838]
[1673286988104,0.14791938,1341.7,1341.6,26.15900064]
[1673286988105,1.82209913,1341.7,1341.6,26.15900064]
[1673286988353,1.82209913,1341.7,1341.6,19.00122064]
[1673286988730,0.14791938,1341.7,1341.6,19.00122064]
[1673286988944,0.14791938,1341.7,1341.6,26.45500064]
[1673286989156,0.14791938,1341.7,1341.6,28.72126464]
[1673286990412,0.14991938,1341.7,1341.6,28.71926464]
[1673286990652,0.14791938,1341.7,1341.6,28.72126464]
[1673286992298,9.38e-06,1341.7,1341.6,50.17504464]
[1673286992510,9.38e-06,1341.7,1341.6,57.5783011]
[1673286993580,9.38e-06,1341.7,1341.6,55.26240182]
[1673286993784,0.16258961,1341.8,1341.6,59.4685011]
[1673286994000,9.61e-06,1341.8,1341.7,16.62959766]
[1673286994270,0.16258961,1342.0,1341.7,39.61448766]
[1673286994413,0.16258961,1342.0,1341.9,15.331]
[1673286994766,0.16258961,1342.0,1341.9,52.98949782]
[1673286995087,0.16258961,1342.0,1341.9,56.6363971]
[1673286995411,0.16258961,1342.0,1341.9,58.9026611]
[1673286995725,0.16258961,1342.0,1341.9,55.25576182]
[1673286996112,0.16258961,1342.0,1341.9,58.9026611]
[1673286996471,0.16258961,1342.0,1341.9,51.4505411]
[1673286996655,0.16258961,1342.0,1341.9,47.80364182]
[1673286996874,0.16258961,1342.0,1341.9,46.47264182]
[1673286997600,0.16258961,1342.0,1341.9,32.47264182]
[1673286997818,1.43858961,1342.0,1341.9,23.40871718]
[1673286997974,1.43858961,1342.0,1341.9,0.066]
[1673286998190,1.43858961,1342.0,1341.9,7.45212]
[1673286998440,1.43858961,1342.0,1341.9,7.51812]
[1673286998665,1.43858961,1342.0,1341.9,14.97024]
[1673286998666,0.16258961,1342.0,1341.9,14.97024]
[1673286998816,0.16258961,1342.0,1341.9,7.51812]
[1673286999029,0.16258961,1342.0,1341.9,14.97024]
[1673286999452,0.16258961,1342.0,1341.9,22.42236]
[1673286999890,0.16258961,1342.0,1341.9,14.97024]
[1673287000075,0.16258961,1342.0,1341.9,15.20024]
[1673287000285,0.16258961,1342.0,1341.9,26.45002064]
[1673287001036,0.16258961,1342.0,1341.9,4.09366064]
[1673287001385,0.16258961,1342.0,1341.9,7.68212]
[1673287001606,0.16258961,1342.0,1341.9,7.74812]
[1673287002296,0.16258961,1342.0,1341.9,4.09366064]
[1673287002486,0.16258961,1342.0,1341.9,34.02096488]
[1673287002700,0.16258961,1342.0,1341.9,37.73386416]
[1673287002971,0.16258961,1342.0,1341.9,38.29096416]
[1673287003128,0.16258961,1342.0,1341.9,37.73386416]
[1673287003486,0.16258961,1342.0,1341.9,34.08696488]
[1673287004067,0.85330055,1342.0,1341.9,34.08696488]
[1673287005329,0.85330055,1342.0,1341.9,32.0046077]
[1673287005588,0.85330055,1342.0,1341.9,16.8703677]
[1673287005913,10.8713753,1342.3,1341.9,14.31578064]
[1673287006066,4.061,1342.2,1342.0,17.79766064]
[1673287006427,4.061,1342.2,1342.0,25.31520064]
[1673287006851,4.061,1342.2,1342.0,17.86366064]
[1673287007058,4.061,1342.2,1342.0,14.066]
[1673287007448,4.061,1342.2,1342.0,21.51749]
[1673287007654,0.561,1342.2,1342.0,21.51749]
[1673287007899,0.561,1342.2,1342.0,28.96905]
[1673287008830,0.561,1342.2,1342.0,21.51749]
[1673287009042,17.56496225,1342.2,1342.0,14.066]
[1673287009279,10.17849225,1342.2,1342.0,14.066]
[1673287009485,10.17849225,1342.2,1342.0,21.51751]
[1673287010245,10.17849225,1342.2,1342.0,0.066]
[1673287010246,1.322,1342.1,1342.0,0.066]
[1673287010400,29.94733923,1342.1,1341.8,0.066]
[1673287010611,6.33833923,1342.1,1341.9,7.452]
[1673287010819,6.33833923,1342.1,1341.9,7.518]
[1673287010820,3.566,1342.1,1341.9,7.518]
[1673287011031,10.95111,1342.1,1341.9,7.518]
[1673287011240,11.01701,1342.1,1341.9,7.518]
[1673287011570,3.566,1342.1,1341.9,7.518]
[1673287011933,3.5,1342.1,1341.9,7.518]
[1673287012142,3.5,1342.1,1341.9,14.97012]
[1673287012318,3.5,1342.1,1341.9,7.518]
[1673287012738,10.95102,1342.1,1341.9,7.518]
[1673287012968,3.566,1342.1,1341.9,7.518]
[1673287013142,3.5,1342.1,1341.9,7.518]
[1673287013637,27.51174435,1342.2,1341.9,7.518]
[1673287013929,6.25117444,1342.1,1341.9,7.518]
[1673287014089,13.76841444,1342.1,1341.9,0.066]
[1673287014293,21.21965444,1342.1,1341.8,25.31593064]
[1673287014508,21.21941444,1342.1,1341.8,28.97094]
[1673287014729,21.21941444,1342.1,1341.8,36.42361]
[1673287015568,17.71941444,1342.1,1341.8,36.42361]
[1673287016932,19.04641444,1342.1,1341.8,36.42361]
[1673287017145,19.04641444,1342.1,1341.8,28.97094]
[1673287017364,20.15608654,1342.1,1341.8,28.97094]
[1673287017666,20.15608654,1342.1,1341.8,14.066]
[1673287017667,27.60708654,1342.1,1341.8,14.066]
[1673287017876,20.15584654,1342.1,1341.8,21.51865]
[1673287018919,27.60684654,1342.1,1341.8,14.066]
[1673287019176,27.60684654,1342.1,1341.8,21.51866]
[1673287019390,27.60684654,1342.1,1341.8,14.066]
[1673287019734,28.1377275,1342.1,1341.8,14.066]
[1673287020023,29.81190725,1342.1,1341.8,14.066]
[1673287020210,6.48119073,1342.0,1341.8,14.066]
[1673287020429,21.45106073,1342.0,1341.8,14.066]
[1673287020654,19.06073283,1342.0,1341.8,14.066]
[1673287020812,14.96987,1342.0,1341.8,14.066]
[1673287022300,7.5178,1342.0,1341.8,14.066]
[1673287022703,7.51761,1342.0,1341.8,21.51863]
[1673287022912,0.066,1342.0,1341.8,21.51863]
[1673287023232,16.0780121,1342.1,1341.8,21.51863]
[1673287023442,21.27067749,1342.1,1341.8,21.51863]
[1673287023911,28.72197749,1342.1,1341.8,21.51863]
[1673287024127,29.25295201,1342.1,1341.8,21.51863]
[1673287025464,1.1096721,1342.0,1341.8,21.51863]
[1673287025968,1.1096721,1342.0,1341.8,28.9713]
[1673287026912,1.1096721,1342.0,1341.8,14.9713]
[1673287028326,1.1096721,1342.0,1341.8,32.76896064]
[1673287028534,2.83385185,1342.0,1341.8,32.76896064]
[1673287028861,2.78385185,1342.0,1341.8,32.76896064]
[1673287029576,1.1096721,1341.9,1341.8,32.76896064]
[1673287029757,1.1096721,1341.9,1341.8,25.54629064]
[1673287029976,1.1096721,1341.9,1341.8,14.296]
[1673287030209,16.57841975,1341.9,1341.8,14.066]
[1673287030455,16.57841975,1341.9,1341.8,0.066]
[1673287030456,16.64441975,1341.9,1341.8,0.066]
[1673287030628,29.98992937,1341.9,1341.7,10.9061]
[1673287030821,29.98992937,1341.9,1341.7,14.70376064]
[1673287030822,1.11575145,1341.8,1341.7,14.70376064]
[1673287031012,1.11575145,1341.8,1341.7,14.93376064]
[1673287031227,10.3080512,1341.9,1341.7,14.93376064]
[1673287031475,2.8559312,1341.9,1341.7,14.93376064]
[1673287031689,1.11575145,1341.8,1341.7,14.93376064]
[1673287031880,1.11575145,1341.8,1341.7,11.1361]
[1673287032059,1.80993692,1341.8,1341.7,11.1361]
[1673287032269,1.80993692,1341.8,1341.7,0.066]
[1673287032532,9.26260692,1341.8,1341.6,30.08946]
[1673287032847,9.32860692,1341.8,1341.6,30.08946]
[1673287033008,1.87593692,1341.8,1341.6,21.51976]
[1673287033214,1.80993692,1341.8,1341.6,36.42732]
[1673287033633,0.69418547,1341.8,1341.6,36.42732]
[1673287033840,0.69418547,1341.8,1341.7,4.02766064]
[1673287034053,0.69418547,1341.8,1341.7,7.52766064]
[1673287034314,0.69418547,1341.8,1341.7,31.80263981]
[1673287034472,0.69418547,1341.8,1341.7,31.80265233]
[1673287034844,0.69418547,1341.8,1341.7,26.45335064]
[1673287035165,0.69418547,1341.8,1341.7,28.3026527]
[1673287035520,0.69418547,1341.8,1341.7,30.52824114]
[1673287035735,0.69418547,1341.8,1341.7,23.07501114]
[1673287035992,0.69418547,1341.8,1341.7,26.07501114]
[1673287037099,0.69418547,1341.8,1341.7,33.52824114]
[1673287038944,0.69418547,1341.8,1341.7,26.07501114]
[1673287039098,0.69418547,1341.8,1341.7,23.8494227]
[1673287039517,0.69418547,1341.8,1341.7,31.3026527]
[1673287042404,0.69418547,1341.8,1341.7,33.52786057]
[1673287042769,0.69418547,1341.8,1341.7,23.8494227]
[1673287043051,0.69418547,1341.8,1341.7,31.3026527]
[1673287043251,0.69418547,1341.8,1341.7,34.63949316]
[1673287044033,1.11575145,1341.9,1341.7,34.63949316]
[1673287044262,1.11575145,1341.9,1341.8,32.70300064]
[1673287044484,1.11575145,1341.9,1341.8,32.99900064]
[1673287045295,1.11575145,1341.9,1341.8,40.45167064]
[1673287046597,2.7899312,1341.9,1341.8,18.09366064]
[1673287046804,2.7899312,1341.9,1341.8,25.54633064]
[1673287047015,2.8399312,1341.9,1341.8,40.45167064]
[1673287047186,1.11575145,1341.9,1341.8,40.45167064]
[1673287048036,3.4150312,1342.0,1341.8,44.52705817]
[1673287048276,3.3490312,1342.0,1341.9,7.68212]
[1673287048448,3.3490312,1342.0,1341.9,15.20024]
[1673287048659,2.23327975,1342.0,1341.9,22.65236]
[1673287049107,4.46869518,1342.0,1341.9,0.296]
[1673287049319,4.46869518,1342.0,1341.9,0.23]
[1673287050141,17.69763543,1342.0,1341.9,0.23]
[1673287050408,28.01145215,1342.0,1341.9,0.23]
[1673287051075,5.09767215,1342.0,1341.9,0.23]
[1673287051286,20.00079215,1342.0,1341.9,0.23]
[1673287051940,17.20453543,1342.0,1341.9,0.23]
[1673287052183,20.00079215,1342.0,1341.9,0.23]
[1673287052398,12.54923215,1342.0,1341.9,0.23]
[1673287053248,12.54804911,1342.0,1341.9,0.23]
[1673287053458,5.09648911,1342.0,1341.9,0.23]
[1673287054054,2.86225672,1342.0,1341.9,0.23]
[1673287054263,2.79625672,1342.0,1341.9,0.209]
[1673287054678,5.03045546,1342.0,1341.9,0.209]
[1673287054892,5.09645546,1342.0,1341.9,0.209]
[1673287056199,2.86225672,1342.0,1341.9,0.209]
[1673287056415,2.79625672,1342.0,1341.9,0.209]
[1673287057249,5.03040301,1342.0,1341.9,0.209]
[1673287057458,5.09640301,1342.0,1341.9,0.209]
[1673287057837,10.31381672,1342.0,1341.8,14.066]
[1673287058043,2.79270061,1341.9,1341.8,28.971]
[1673287058258,1.67562037,1341.9,1341.8,36.65367]
[1673287058471,2.79272812,1341.9,1341.8,36.65367]
[1673287059460,2.79272812,1341.9,1341.8,29.201]
[1673287060086,3.48964793,1341.9,1341.8,36.65367]
[1673287060651,1.81402756,1341.9,1341.8,29.201]
[1673287060865,3.48964793,1341.9,1341.8,29.201]
[1673287061233,1.81402756,1341.9,1341.8,29.201]
[1673287061694,3.48964793,1341.9,1341.8,29.201]
[1673287063030,3.48964793,1341.9,1341.8,36.65367]
[1673287063467,2.42254018,1341.9,1341.8,36.65367]
[1673287063687,2.37254018,1341.9,1341.8,36.65367]
[1673287063900,3.48970178,1341.9,1341.8,36.65367]
[1673287064274,2.37254018,1341.9,1341.8,36.65367]
[1673287064483,3.48969939,1341.9,1341.8,36.65367]
[1673287064710,2.37254018,1341.9,1341.8,36.65367]
[1673287064940,3.48968582,1341.9,1341.8,36.65367]
[1673287065341,3.48968582,1341.9,1341.8,29.201]
[1673287066528,3.48968582,1341.9,1341.8,36.65367]
[1673287067656,3.48968582,1341.9,1341.8,29.201]
[1673287067882,1.81406545,1341.9,1341.8,29.201]
[1673287068322,1.81406545,1341.9,1341.8,31.05019851]
[1673287068859,1.81406545,1341.9,1341.8,38.50286851]
[1673287069017,1.81406545,1341.9,1341.8,38.50287846]
[1673287069693,1.81406545,1341.9,1341.8,42.3005391]
[1673287069913,0.066,1342.0,1341.8,56.66841908]
[1673287070069,5.09263958,1342.3,1341.9,17.56498191]
[1673287070070,1.80384274,1342.3,1341.9,17.56498191]
[1673287070285,0.06222237,1342.3,1342.1,14.0]
[1673287070634,0.06222237,1342.3,1342.2,15.1309]
[1673287070833,0.06222237,1342.3,1342.2,22.64735]
[1673287071903,1.73784274,1342.3,1342.2,22.64735]
[1673287072317,0.06222237,1342.3,1342.2,22.64735]
[1673287072693,0.06222237,1342.3,1342.2,26.44501064]
[1673287073374,1.73839098,1342.5,1342.2,51.2801553]
[1673287073577,0.25354108,1342.7,1342.4,25.61966064]
[1673287073752,0.18754108,1342.7,1342.6,32.69412064]
[1673287073967,0.18754108,1342.7,1342.6,36.47309492]
[1673287074173,0.18754108,1342.7,1342.6,35.98812064]
[1673287074174,0.18954108,1342.7,1342.6,35.98812064]
[1673287074373,0.18754108,1342.7,1342.6,41.03409492]
[1673287074604,0.732842,1342.8,1342.7,14.89536]
[1673287074829,0.19967278,1342.9,1342.7,22.81735632]
[1673287075046,0.19967278,1342.9,1342.8,32.92190064]
[1673287075266,0.19967278,1342.9,1342.8,32.98790064]
[1673287075480,2.78e-06,1342.9,1342.8,32.98790064]
[1673287077966,2.78e-06,1342.9,1342.8,40.43502064]
[1673287078179,2.78e-06,1342.9,1342.8,42.9969867]
[1673287080071,2.78e-06,1342.9,1342.8,43.00677765]
[1673287083543,2.78e-06,1342.9,1342.8,46.00677765]
[1673287090221,2.78e-06,1342.9,1342.8,38.55965765]
[1673287090376,2.78e-06,1342.9,1342.8,32.99769159]
[1673287090586,2.78e-06,1342.9,1342.8,18.09366064]
[1673287091251,3.50000278,1342.9,1342.8,14.296]
[1673287091587,10.94657278,1342.9,1342.8,14.296]
[1673287091830,11.01257278,1342.9,1342.8,14.296]
[1673287092282,6.21236906,1342.9,1342.8,14.296]
[1673287093371,6.21236906,1342.9,1342.8,14.066]
[1673287095125,2.71236906,1342.9,1342.8,14.066]
[1673287095387,2.64636906,1342.9,1342.8,14.066]
[1673287096336,2.64636906,1342.9,1342.8,21.51312]
[1673287096492,2.78e-06,1342.9,1342.8,21.50958795]
[1673287096941,2.78e-06,1342.9,1342.8,14.06246795]
[1673287097702,2.60300278,1342.9,1342.8,14.06046795]
[1673287097870,2.60100278,1342.9,1342.8,14.06246795]
[1673287100271,10.04757278,1342.9,1342.8,0.06246795]
[1673287100486,10.04757278,1342.9,1342.5,31.82021062]
[1673287100487,29.37725406,1342.9,1342.5,31.82021062]
[1673287100713,1.8897,1342.8,1342.6,0.23]
[1673287100927,20.28446,1342.8,1342.6,0.23]
[1673287101138,23.56661741,1342.8,1342.6,0.23]
[1673287101479,5.17185741,1342.8,1342.6,7.67816]
[1673287101648,5.17185741,1342.8,1342.6,7.71633062]
[1673287102215,1.331,1342.7,1342.6,0.03817062]
[1673287102427,12.27868,1342.7,1342.3,14.03817062]
[1673287102642,3.117668,1342.6,1342.3,14.03817062]
[1673287102950,3.117668,1342.6,1342.3,0.03817062]
[1673287102951,1.331,1342.4,1342.3,0.03817062]
[1673287103122,1.331,1342.4,1342.1,19.7807227]
[1673287103123,8.78034,1342.4,1342.1,11.25049332]
[1673287103334,1.327,1342.3,1342.1,0.07359332]
[1673287103683,1.327,1342.3,1342.1,0.0354227]
[1673287104008,3.439268,1342.3,1342.1,0.0354227]
[1673287104687,1.327,1342.3,1342.1,0.0354227]
[1673287105976,8.77712,1342.3,1342.1,0.0354227]
[1673287106205,1.326,1342.2,1342.1,0.0354227]
[1673287106417,9.33545,1342.2,1342.1,0.0354227]
[1673287106732,0.625,1342.2,1342.1,22.3884227]
[1673287106942,0.625,1342.2,1342.1,7.52459332]
[1673287106943,0.559,1342.2,1342.1,7.52459332]
[1673287107171,0.5589,1342.3,1342.1,7.52459332]
[1673287107676,0.5589,1342.3,1342.1,22.42659332]
[1673287108057,0.5589,1342.4,1342.1,22.42659332]
[1673287110997,22.90736,1342.4,1342.1,0.07359332]
[1673287111247,15.5238,1342.4,1342.1,7.4862927]
[1673287111459,15.5238,1342.4,1342.1,7.52446332]
[1673287111779,15.5238,1342.4,1342.1,0.07359332]
[1673287111997,15.5238,1342.4,1342.1,0.0354227]
[1673287111998,1.55238,1342.3,1342.1,0.0354227]
[1673287112143,14.9009,1342.2,1342.1,0.0354227]
[1673287112356,14.9669,1342.2,1342.1,0.0354227]
[1673287112590,7.51645,1342.2,1342.1,0.0354227]
[1673287113094,12.864369,1342.2,1342.1,0.0354227]
[1673287113326,5.413919,1342.2,1342.1,0.0354227]
[1673287114267,2.667,1342.2,1342.1,0.0354227]
[1673287114477,1.325,1342.2,1342.1,0.0354227]
[1673287114728,1.327,1342.2,1342.1,0.0354227]
[1673287114946,1.325,1342.2,1342.1,0.0354227]
[1673287115265,2.94438,1342.3,1342.1,7.4864127]
[1673287115578,10.32827,1342.3,1342.1,0.07359332]
[1673287115890,1.032827,1342.2,1342.1,0.0354227]
[1673287116942,7.45045,1342.2,1342.1,0.0354227]
[1673287117156,7.51645,1342.2,1342.1,0.0354227]
[1673287117470,2.667,1342.2,1342.1,0.0354227]
[1673287117632,2.601,1342.2,1342.1,7.4864227]
[1673287117845,2.601,1342.2,1342.1,0.07359332]
[1673287118054,2.601,1342.2,1342.1,0.0354227]
[1673287119627,25.29468,1342.3,1342.1,0.0354227]
[1673287119840,0.066,1342.3,1342.1,22.3884227]
[1673287120085,9.33347,1342.4,1342.1,14.97559332]
[1673287120256,1.9499,1342.4,1342.1,14.97559332]
[1673287120470,1.8839,1342.4,1342.1,14.97559332]
[1673287120962,1.8839,1342.4,1342.1,22.42659332]
[1673287121601,9.33334,1342.4,1342.1,14.97559332]
[1673287121807,1.9499,1342.4,1342.1,22.42659332]
[1673287121988,1.8839,1342.4,1342.1,22.42659332]
[1673287122198,1.8839,1342.4,1342.1,14.97559332]
[1673287122418,1.8839,1342.4,1342.1,22.42659332]
[1673287123583,9.33325,1342.4,1342.1,22.42659332]
[1673287123790,9.39925,1342.4,1342.1,22.42659332]
[1673287124350,1.391,1342.4,1342.1,22.42659332]
[1673287124506,1.325,1342.4,1342.1,22.42659332]
[1673287124718,31.92411,1342.5,1342.1,22.42659332]
[1673287125362,31.92411,1342.5,1342.1,22.42404979]
[1673287125993,33.03326612,1342.5,1342.1,22.42404979]
[1673287126243,25.58414612,1342.5,1342.1,22.42404979]
[1673287126409,14.71243663,1342.5,1342.1,22.42404979]
[1673287126940,13.60328051,1342.5,1342.1,22.42404979]
[1673287127604,9.5769,1342.5,1342.1,22.42404979]
[1673287127817,10.68605612,1342.5,1342.1,22.42404979]
[1673287128922,10.68605612,1342.5,1342.1,26.22171043]
[1673287129161,10.68605612,1342.5,1342.2,3.73]
[1673287129402,10.68605612,1342.5,1342.3,14.89978]
[1673287129588,3.05895612,1342.5,1342.3,7.48806062]
[1673287129770,10.44177612,1342.5,1342.3,7.48806062]
[1673287129975,10.50777612,1342.5,1342.3,7.48806062]
[1673287130222,17.95659612,1342.5,1342.3,0.03817062]
[1673287130428,22.2420816,1342.5,1342.2,0.26817062]
[1673287130760,28.3659016,1342.5,1342.2,0.23]
[1673287130965,23.12587861,1342.5,1342.2,15.1308]
[1673287131182,22.58947258,1342.5,1342.2,15.16897062]
[1673287131373,15.14065258,1342.5,1342.2,22.61942062]
[1673287131703,1.10915612,1342.4,1342.2,15.16897062]
[1673287132015,1.10915612,1342.4,1342.2,7.71852062]
[1673287132182,30.57497861,1342.5,1342.2,7.71852062]
[1673287132390,3.05749786,1342.4,1342.2,7.71852062]
[1673287132597,1.10915612,1342.4,1342.2,7.71852062]
[1673287132838,1.10915612,1342.4,1342.2,7.71859062]
[1673287133276,1.10915612,1342.4,1342.2,15.16904062]
[1673287133437,1.10915612,1342.4,1342.2,7.71859062]
[1673287133648,1.10915612,1342.4,1342.2,15.16904062]
[1673287133909,1.10915612,1342.4,1342.2,7.71859062]
[1673287134118,1.10915612,1342.4,1342.2,0.26817062]
[1673287134335,1.10915612,1342.4,1342.2,0.23]
[1673287134698,8.55861612,1342.4,1342.2,0.23]
[1673287134913,8.62461612,1342.4,1342.2,0.23]
[1673287135230,10.2970071,1342.4,1342.2,0.23]
[1673287135484,17.7464671,1342.4,1342.2,0.23]
[1673287137058,10.2970071,1342.4,1342.2,0.23]
[1673287137288,1.10915612,1342.3,1342.2,0.23]
[1673287138151,1.10915612,1342.3,1342.2,7.68045]
[1673287138312,1.10915612,1342.3,1342.2,0.26817062]
[1673287138518,1.10915612,1342.3,1342.2,0.23]
[1673287138744,1.10915612,1342.3,1342.2,7.68045]
[1673287138959,1.10915612,1342.3,1342.2,7.71862062]
[1673287139261,1.10915612,1342.3,1342.2,15.16907062]
[1673287139471,1.10915612,1342.3,1342.2,22.61952062]
[1673287141350,2.7815471,1342.3,1342.2,22.61952062]
[1673287141612,1.10915612,1342.3,1342.2,22.61952062]
[1673287141831,2.7815471,1342.3,1342.2,22.61952062]
[1673287142513,2.7835471,1342.3,1342.2,22.61752062]
[1673287142724,2.7815471,1342.3,1342.2,22.61952062]
[1673287143136,2.7815471,1342.3,1342.2,22.60452062]
[1673287143348,2.7815471,1342.3,1342.2,22.59952062]
[1673287145342,2.7815471,1342.3,1342.2,15.14907062]
[1673287145812,2.78915552,1342.3,1342.2,22.59952062]
[1673287146496,1.67239098,1342.3,1342.2,22.59952062]
[1673287146709,3.90655147,1342.3,1342.2,22.59952062]
[1673287146951,2.78916454,1342.3,1342.2,22.59952062]
[1673287147180,2.78916454,1342.3,1342.2,15.14907062]
[1673287147573,2.78916454,1342.3,1342.2,22.59952062]
[1673287150493,2.78916454,1342.3,1342.2,15.14907062]
[1673287151021,1.67239098,1342.3,1342.2,15.14907062]
[1673287151262,1.67239098,1342.3,1342.2,22.59952062]
[1673287151972,1.67239098,1342.3,1342.2,15.14907062]
[1673287152186,1.67239098,1342.3,1342.2,22.59952062]
[1673287152746,2.78925475,1342.3,1342.2,22.59952062]
[1673287153480,2.78925475,1342.3,1342.2,15.14907062]
[1673287153679,1.67239098,1342.3,1342.2,7.69862062]
[1673287154002,1.67239098,1342.3,1342.2,15.14907062]
[1673287154215,1.67239098,1342.3,1342.2,7.69862062]
[1673287155260,3.90655147,1342.3,1342.2,7.69862062]
[1673287156317,3.90655147,1342.3,1342.2,22.59952062]
[1673287157101,1.67239098,1342.3,1342.2,22.59952062]
[1673287157319,3.90655147,1342.3,1342.2,22.59952062]
[1673287157529,2.78954034,1342.3,1342.2,15.14907062]
[1673287157733,1.67239098,1342.3,1342.2,7.69862062]
[1673287158205,1.67239098,1342.3,1342.2,0.24817062]
[1673287158588,3.90655147,1342.3,1342.2,7.66045]
[1673287158753,3.90655147,1342.3,1342.2,0.24817062]
[1673287158967,3.90655147,1342.3,1342.2,0.21]
[1673287159127,3.90655147,1342.3,1342.2,7.66045]
[1673287159331,3.90655147,1342.3,1342.2,7.69862062]
[1673287161993,3.90655147,1342.3,1342.2,15.14907062]
[1673287163171,3.90655147,1342.3,1342.2,22.59952062]
[1673287163331,3.90655147,1342.3,1342.2,22.59752062]
[1673287163332,1.67439098,1342.3,1342.2,22.59752062]
[1673287163537,3.90655147,1342.3,1342.2,22.59952062]
[1673287166634,28.05170754,1342.3,1342.2,0.03817062]
[1673287166794,28.67695888,1342.3,1342.1,0.03287917]
[1673287167004,5.02866374,1342.2,1342.1,0.03287917]
[1673287167249,2.85970232,1342.2,1342.1,0.03287917]
[1673287167461,12.69987004,1342.2,1342.1,0.03287917]
[1673287167682,20.21632004,1342.2,1342.1,0.03287917]
[1673287168193,12.76587004,1342.2,1342.1,0.03287917]
[1673287168400,7.54886981,1342.2,1342.1,0.03287917]
[1673287168924,14.99931981,1342.2,1342.1,0.03287917]
[1673287169982,8.08527584,1342.2,1342.1,0.03287917]
[1673287170265,14.99931981,1342.2,1342.1,0.03287917]
[1673287170585,12.20561749,1342.2,1342.1,0.03287917]
[1673287171308,13.88008901,1342.2,1342.1,0.03287917]
[1673287171990,6.42963901,1342.2,1342.1,0.03287917]
[1673287172168,21.33053901,1342.2,1342.1,0.03287917]
[1673287172357,28.78099467,1342.2,1342.1,0.03287917]
[1673287172570,29.3174007,1342.2,1342.1,0.03287917]
[1673287172783,27.64292352,1342.2,1342.1,0.03287917]
[1673287173305,20.19247352,1342.2,1342.1,0.03287917]
[1673287173514,27.10651749,1342.2,1342.1,0.03287917]
[1673287173783,27.64292352,1342.2,1342.1,0.03287917]
[1673287174036,30.43662584,1342.2,1342.1,0.03287917]
[1673287174251,15.53572584,1342.2,1342.1,0.03287917]
[1673287174460,14.99931981,1342.2,1342.1,0.03287917]
[1673287174851,12.20561749,1342.2,1342.1,0.03287917]
[1673287176329,29.90021981,1342.2,1342.1,0.03287917]
[1673287176521,30.43662584,1342.2,1342.1,0.03287917]
[1673287176731,22.98617584,1342.2,1342.1,0.03287917]
[1673287177445,22.98258054,1342.2,1342.1,0.03287917]
[1673287177583,16.06853657,1342.2,1342.1,0.03287917]
[1673287177796,13.8350868,1342.2,1342.1,0.03287917]
[1673287178007,28.19958077,1342.2,1342.1,0.03287917]
[1673287178336,28.7359868,1342.2,1342.1,0.03287917]
[1673287178520,32.0609868,1342.2,1342.1,0.03287917]
[1673287180557,34.29103252,1342.2,1342.1,0.03287917]
[1673287182649,7.49320499,1342.2,1342.1,0.03287917]
[1673287182854,4.72675324,1342.2,1342.1,7.48387917]
[1673287183109,4.66075324,1342.2,1342.1,7.52110259]
[1673287183283,5.77549442,1342.2,1342.1,7.52110259]
[1673287183605,5.77549442,1342.2,1342.1,0.07010259]
[1673287183606,4.72675324,1342.2,1342.1,0.07010259]
[1673287183767,4.66075324,1342.2,1342.1,0.03287917]
[1673287184227,4.66075324,1342.2,1342.1,7.48387917]
[1673287184441,5.77555861,1342.2,1342.1,7.52110259]
[1673287184654,5.84155861,1342.2,1342.1,7.52110259]
[1673287188113,5.84155861,1342.2,1342.1,7.51910259]
[1673287188287,5.84155861,1342.2,1342.1,7.52110259]
[1673287189277,4.72675324,1342.2,1342.1,0.07010259]
[1673287189493,12.11120324,1342.2,1342.1,0.03287917]
[1673287189667,19.62765324,1342.2,1342.1,0.03287917]
[1673287190237,5.84166078,1342.2,1342.1,7.48387917]
[1673287190389,1.71371827,1342.2,1342.1,14.96889684]
[1673287190603,3.31994306,1342.2,1342.1,14.96889684]
[1673287191172,3.31994306,1342.2,1342.1,7.51789684]
[1673287191697,2.20503552,1342.2,1342.1,7.51789684]
[1673287192069,2.20503552,1342.2,1342.1,0.06689684]
[1673287192275,2.20503552,1342.2,1342.1,0.02967342]
[1673287193710,9.65548552,1342.2,1342.1,0.02967342]
[1673287193854,9.72148552,1342.2,1342.1,0.02967342]
[1673287194752,17.17193552,1342.2,1342.1,0.02967342]
[1673287194943,17.70834155,1342.2,1342.1,0.02967342]
[1673287195323,30.37882152,1342.2,1342.1,0.02967342]
[1673287196209,34.83052384,1342.2,1342.1,0.02967342]
[1673287196542,32.5952438,1342.2,1342.1,0.01567288]
[1673287196841,29.8067758,1342.2,1342.1,0.01567288]
[1673287197060,32.59524664,1342.2,1342.1,0.01567288]
[1673287197278,17.69434664,1342.2,1342.1,0.01567288]
[1673287198160,21.19434664,1342.2,1342.1,0.01567288]
[1673287198372,28.64479664,1342.2,1342.1,0.01567288]
[1673287198609,25.14479664,1342.2,1342.1,0.01567288]
[1673287198837,10.24389664,1342.2,1342.1,0.01567288]
[1673287199052,9.70749061,1342.2,1342.1,0.01567288]
[1673287199366,11.93831015,1342.2,1342.1,0.01567288]
[1673287199583,12.47471618,1342.2,1342.1,0.01567288]
[1673287200102,11.93831015,1342.2,1342.1,0.01567288]
[1673287200534,10.28031015,1342.2,1342.1,14.91767288]
[1673287200699,5.61810111,1342.2,1342.1,7.5038963]
[1673287201420,2.82963027,1342.2,1342.1,0.0528963]
[1673287201626,5.55210111,1342.2,1342.1,0.01567288]
[1673287201949,5.61810111,1342.2,1342.1,0.01567288]
[1673287202366,5.61810111,1342.2,1342.1,7.46667288]
[1673287202590,14.76717237,1342.2,1342.1,0.0528963]
[1673287202820,9.69825153,1342.2,1342.1,0.01567288]
[1673287202995,10.23465756,1342.2,1342.1,0.01567288]
[1673287203213,6.19825153,1342.2,1342.1,0.01567288]
[1673287203425,13.64870153,1342.2,1342.1,0.01567288]
[1673287203635,21.63555756,1342.2,1342.1,0.01567288]
[1673287204052,21.09915153,1342.2,1342.1,0.01567288]
[1673287204282,21.63555756,1342.2,1342.1,0.01567288]
[1673287204782,6.73465756,1342.2,1342.1,0.01567288]
[1673287204993,20.50420959,1342.2,1342.1,0.01567288]
[1673287205224,35.94151562,1342.2,1342.1,0.01567288]
[1673287206156,32.60151562,1342.2,1342.1,0.01567288]
[1673287206409,35.94151562,1342.2,1342.1,0.01567288]
[1673287206623,32.58600756,1342.2,1342.1,0.00552203]
[1673287206933,36.50400292,1342.2,1342.1,0.00552203]
[1673287207243,35.93534807,1342.2,1342.1,0.00552203]
[1673287207828,35.93534807,1342.2,1342.1,0.15912803]